bitfinex/quotes_BTCUSD_20250616
["timestamp","ask_amount","ask_price","bid_price","bid_amount"]
[1750041675195,0.73564442,106030.0,106020.0,0.22500275]
[1750041675850,0.73564442,106030.0,106020.0,0.19674193]
[1750041676068,0.76420468,106030.0,106020.0,0.19674193]
[1750041676284,0.003,106030.0,106020.0,0.73397437]
[1750041676499,0.003,106030.0,106020.0,0.58438783]
[1750041676714,0.003,106030.0,106020.0,0.73539169]
[1750041676955,0.003,106030.0,106020.0,0.81089266]
[1750041677164,0.00047099,106040.0,106030.0,0.01454085]
[1750041677368,0.00047099,106040.0,106030.0,0.3826968]
[1750041677574,0.00047099,106040.0,106030.0,0.33469908]
[1750041677783,0.00047099,106040.0,106030.0,0.46705708]
[1750041677978,0.00047099,106040.0,106030.0,0.46985417]
[1750041678196,0.00047099,106040.0,106030.0,0.51664929]
[1750041678406,0.00047099,106040.0,106030.0,0.55157633]
[1750041678613,0.00047099,106040.0,106030.0,0.89742516]
[1750041678822,0.00047099,106040.0,106030.0,1.01629452]
[1750041679027,0.00047099,106040.0,106030.0,1.0229279]
[1750041679236,0.00047099,106040.0,106030.0,0.54814696]
[1750041679442,0.00047099,106040.0,106030.0,0.52928528]
[1750041679651,0.00047099,106040.0,106030.0,0.74674949]
[1750041679848,0.00047099,106040.0,106030.0,0.74211621]
[1750041680048,0.00047099,106040.0,106030.0,0.75818042]
[1750041680338,0.00047099,106040.0,106030.0,0.79827593]
[1750041680565,0.00047099,106040.0,106030.0,0.8059093]
[1750041680755,0.00047099,106040.0,106030.0,0.81534014]
[1750041680962,0.00047099,106040.0,106030.0,0.80870677]
[1750041681166,0.00047099,106040.0,106030.0,0.79647822]
[1750041681484,0.00047099,106040.0,106030.0,0.77098269]
[1750041681699,0.00047099,106040.0,106030.0,1.0792138]
[1750041681930,0.00047099,106040.0,106030.0,1.09807557]
[1750041682149,0.00047099,106040.0,106030.0,1.10459259]
[1750041682379,0.00047099,106040.0,106030.0,1.09807557]
[1750041682602,0.00047099,106040.0,106030.0,1.08573083]
[1750041683020,0.00047099,106040.0,106030.0,1.09516341]
[1750041683278,0.00047099,106040.0,106030.0,1.10459394]
[1750041683497,0.00047099,106040.0,106030.0,1.49071982]
[1750041683918,0.00047099,106040.0,106030.0,1.4972383]
[1750041684150,0.00047099,106040.0,106030.0,1.49071982]
[1750041684347,0.00047099,106040.0,106030.0,1.49723831]
[1750041684606,0.00047099,106040.0,106030.0,1.49723829]
[1750041684812,0.00047099,106040.0,106030.0,1.49071982]
[1750041685072,0.00047099,106040.0,106030.0,1.49723831]
[1750041685305,0.00047099,106040.0,106030.0,1.44107819]
[1750041685550,0.00047099,106040.0,106030.0,1.4345601]
[1750041685824,0.00047099,106040.0,106030.0,1.44107793]
[1750041686037,0.00047099,106040.0,106030.0,1.21778029]
[1750041686253,0.00047099,106040.0,106030.0,1.21778004]
[1750041686473,0.00047099,106040.0,106030.0,1.21778033]
[1750041686675,0.00047099,106040.0,106030.0,1.21126332]
[1750041686888,0.00047099,106040.0,106030.0,1.21778016]
[1750041687126,0.00047099,106040.0,106030.0,1.21126332]
[1750041687339,0.00047099,106040.0,106030.0,1.21778027]
[1750041687561,0.0316,106100.0,106080.0,0.01454085]
[1750041687767,0.39264442,106090.0,106080.0,0.15096995]
[1750041687979,0.73264442,106090.0,106080.0,0.33153854]
[1750041688219,0.73264442,106090.0,106080.0,0.13321349]
[1750041688451,0.77309595,106090.0,106080.0,0.27787264]
[1750041688653,0.77309609,106090.0,106080.0,0.28450404]
[1750041688861,0.77309609,106090.0,106080.0,0.27787264]
[1750041689071,0.77409609,106090.0,106080.0,0.27787264]
[1750041689290,0.75679609,106090.0,106080.0,0.28450413]
[1750041689502,0.74894442,106090.0,106080.0,0.29113562]
[1750041689709,0.75779613,106090.0,106080.0,0.28462413]
[1750041689913,0.74894442,106090.0,106080.0,0.29125563]
[1750041690124,0.74894442,106090.0,106080.0,0.29125567]
[1750041690332,0.75779613,106090.0,106080.0,0.2912556]
[1750041690540,0.74894442,106090.0,106080.0,0.28462413]
[1750041690746,0.74894442,106090.0,106080.0,0.29125553]
[1750041690955,0.74894442,106090.0,106080.0,0.13193553]
[1750041691249,0.76564442,106090.0,106080.0,0.01326334]
[1750041691443,1.15828884,106090.0,106080.0,0.16599149]
[1750041691648,1.15828884,106090.0,106080.0,0.17262351]
[1750041691856,1.16714091,106090.0,106080.0,0.17262413]
[1750041692067,1.15828884,106090.0,106080.0,0.1726245]
[1750041692297,1.16714129,106090.0,106080.0,0.17262457]
[1750041692510,1.16714143,106090.0,106080.0,0.17262472]
[1750041692714,1.16714143,106090.0,106080.0,0.17254477]
[1750041692931,1.15828884,106090.0,106080.0,0.00663149]
[1750041693146,1.15828884,106090.0,106080.0,0.17254494]
[1750041693357,1.16714165,106090.0,106080.0,0.17254526]
[1750041693564,1.15828884,106090.0,106080.0,0.16591149]
[1750041693773,1.15828884,106090.0,106080.0,0.17258535]
[1750041693981,1.1671417,106090.0,106080.0,0.17258536]
[1750041694199,1.1671417,106090.0,106080.0,0.00663149]
[1750041694407,1.1671417,106090.0,106080.0,0.01326542]
[1750041694618,1.1671417,106090.0,106080.0,0.01326543]
[1750041694831,1.1671417,106090.0,106080.0,0.00663149]
[1750041695055,1.1671417,106090.0,106080.0,0.01326543]
[1750041695335,1.15828884,106090.0,106080.0,0.01326531]
[1750041695588,1.15828884,106090.0,106080.0,0.00663149]
[1750041695835,1.15828884,106090.0,106080.0,0.01326505]
[1750041696045,1.15728884,106090.0,106080.0,0.01326474]
[1750041696262,1.1691417,106090.0,106080.0,0.00663149]
[1750041696473,1.15728884,106090.0,106080.0,0.01326498]
[1750041696717,1.15628884,106090.0,106080.0,0.01326498]
[1750041696911,1.1681417,106090.0,106080.0,0.01326508]
[1750041697113,1.16128884,106090.0,106080.0,0.01326509]
[1750041697321,1.16128884,106090.0,106080.0,0.00663149]
[1750041697547,1.16128884,106090.0,106080.0,0.0132651]
[1750041697548,1.15928884,106090.0,106080.0,0.0132651]
[1750041697757,1.1681417,106090.0,106080.0,0.0132651]
[1750041697964,1.15928884,106090.0,106080.0,0.0132651]
[1750041698376,1.16128884,106090.0,106080.0,0.0132651]
[1750041698582,1.16128884,106090.0,106080.0,0.00663149]
[1750041698810,1.1701417,106090.0,106080.0,0.00663149]
[1750041698988,1.1701417,106090.0,106080.0,0.01326512]
[1750041698989,1.16128884,106090.0,106080.0,0.01326512]
[1750041699406,1.16128884,106090.0,106080.0,0.01326516]
[1750041699827,1.16128884,106090.0,106080.0,0.00663149]
[1750041700242,1.16128884,106090.0,106080.0,0.01326516]
[1750041700452,1.16128884,106090.0,106080.0,0.01326515]
[1750041700654,1.16128884,106090.0,106080.0,0.00663149]
[1750041700864,1.16128884,106090.0,106080.0,0.01326515]
[1750041701282,1.16128884,106090.0,106080.0,0.00663149]
[1750041701497,1.16128884,106090.0,106080.0,0.01326515]
[1750041701703,6.21081784,106090.0,106080.0,0.00663149]
[1750041701912,6.22966841,106090.0,106080.0,0.00663149]
[1750041702115,6.22024299,106090.0,106080.0,0.01326562]
[1750041702325,6.22024299,106090.0,106080.0,0.01326575]
[1750041702533,6.22024299,106090.0,106080.0,0.00663149]
[1750041702738,6.22024299,106090.0,106080.0,0.01326538]
[1750041702947,6.22966832,106090.0,106080.0,0.01326462]
[1750041703152,6.22024299,106090.0,106080.0,0.01326459]
[1750041703352,6.22024299,106090.0,106080.0,0.01326442]
[1750041703556,6.22024299,106090.0,106080.0,0.0132644]
[1750041703802,6.22024299,106090.0,106080.0,0.00663149]
[1750041704012,6.22966823,106090.0,106080.0,0.01326527]
[1750041704219,6.22966823,106090.0,106080.0,0.00663149]
[1750041704428,6.22966823,106090.0,106080.0,0.01326564]
[1750041704635,6.22966823,106090.0,106080.0,0.01326565]
[1750041704840,6.21081784,106090.0,106080.0,0.01326565]
[1750041705259,6.21081784,106090.0,106080.0,0.01326574]
[1750041705464,6.21081784,106090.0,106080.0,0.00663149]
[1750041705671,6.21081784,106090.0,106080.0,0.01326302]
[1750041705885,6.21081784,106090.0,106080.0,0.00663149]
[1750041706515,6.21824317,106090.0,106080.0,0.00663149]
[1750041706718,6.21524317,106090.0,106080.0,0.01326302]
[1750041706924,6.21824317,106090.0,106080.0,0.01326302]
[1750041707134,6.21381784,106090.0,106080.0,0.00663149]
[1750041707367,6.22324299,106090.0,106080.0,0.00663149]
[1750041707970,6.22324299,106090.0,106060.0,0.26774786]
[1750041707971,0.3724,106080.0,106060.0,0.26774786]
[1750041708177,0.39264442,106070.0,106060.0,0.18748051]
[1750041708380,0.39264442,106070.0,106060.0,0.02804051]
[1750041708586,0.39264442,106070.0,106060.0,0.18744051]
[1750041709437,0.39278574,106070.0,106060.0,0.18744051]
[1750041709716,0.39278574,106070.0,106060.0,0.20390051]
[1750041710389,0.39278574,106070.0,106060.0,0.20394051]
[1750041711459,0.39278574,106070.0,106060.0,0.20390051]
[1750041712333,0.39278574,106070.0,106060.0,0.04454051]
[1750041712538,0.39278574,106070.0,106060.0,0.20386051]
[1750041713197,0.39278574,106070.0,106060.0,0.04454051]
[1750041713410,0.39278574,106070.0,106060.0,0.02804051]
[1750041713618,0.42408574,106070.0,106060.0,0.02804051]
[1750041713861,0.34,106060.0,106050.0,0.23966786]
[1750041714075,0.73264442,106060.0,106050.0,0.23966786]
[1750041715154,0.37144132,106070.0,106050.0,0.23974786]
[1750041715365,0.39264442,106060.0,106050.0,0.20536051]
[1750041716204,0.39264442,106060.0,106050.0,0.20236051]
[1750041716887,0.39264442,106060.0,106050.0,0.04304051]
[1750041717101,0.39264442,106060.0,106050.0,0.20268051]
[1750041717308,0.39364442,106060.0,106050.0,0.20268051]
[1750041717522,0.40864442,106060.0,106040.0,0.13920786]
[1750041717762,0.0319,106060.0,106050.0,0.1596]
[1750041717983,0.42454442,106060.0,106050.0,0.1596]
[1750041719064,0.42354442,106060.0,106050.0,0.1596]
[1750041719273,0.42454442,106060.0,106050.0,0.1596]
[1750041719486,0.42454442,106060.0,106050.0,0.15956]
[1750041719908,0.40764442,106060.0,106050.0,0.16620035]
[1750041720126,0.40864442,106060.0,106050.0,0.16620019]
[1750041720369,0.40864442,106060.0,106050.0,0.15956]
[1750041720598,0.39364442,106060.0,106050.0,0.16619945]
[1750041720835,0.39364442,106060.0,106050.0,0.15956]
[1750041721313,0.39364442,106060.0,106050.0,0.16619855]
[1750041721527,0.39364442,106060.0,106050.0,0.16619821]
[1750041721736,0.39364442,106060.0,106050.0,0.16619812]
[1750041721947,0.39364442,106060.0,106050.0,0.15956]
[1750041722235,0.39364442,106060.0,106050.0,0.1812972]
[1750041722481,0.39364442,106060.0,106050.0,0.17466]
[1750041722662,0.39364442,106060.0,106050.0,0.18129703]
[1750041722940,0.39364442,106060.0,106050.0,0.17466]
[1750041723358,0.39364442,106060.0,106050.0,0.18129674]
[1750041723562,0.39364442,106060.0,106050.0,0.17466]
[1750041724029,0.39364442,106060.0,106050.0,0.18129626]
[1750041724251,0.39364442,106060.0,106050.0,0.17466]
[1750041724452,0.39364442,106060.0,106050.0,0.18129633]
[1750041725075,0.39364442,106060.0,106050.0,0.16619493]
[1750041725276,0.34,106050.0,106040.0,0.05965686]
[1750041725479,0.73264442,106050.0,106040.0,0.21897686]
[1750041725706,0.73264442,106050.0,106040.0,0.22561183]
[1750041725914,0.73264442,106050.0,106040.0,0.22561186]
[1750041726118,0.73264442,106050.0,106040.0,0.22561182]
[1750041726328,0.76097923,106050.0,106040.0,0.22561179]
[1750041726436,0.76097923,106050.0,106040.0,0.22197686]
[1750041726924,0.76097923,106050.0,106040.0,0.22861257]
[1750041727132,0.76097923,106050.0,106040.0,0.22197686]
[1750041727346,0.76097923,106050.0,106040.0,0.22861255]
[1750041727771,0.76097923,106050.0,106040.0,0.22861275]
[1750041728440,0.76097923,106050.0,106040.0,0.22861281]
[1750041729202,0.02833481,106050.0,106040.0,0.22197686]
[1750041729410,0.37164132,106070.0,106040.0,0.20627686]
[1750041729770,0.39264442,106050.0,106040.0,0.21291274]
[1750041730173,0.39264442,106050.0,106040.0,0.22861279]
[1750041730783,0.39264442,106050.0,106040.0,0.22197686]
[1750041730990,0.39264442,106050.0,106040.0,0.21897686]
[1750041731192,0.42102739,106050.0,106040.0,0.22561278]
[1750041731367,0.42102739,106050.0,106040.0,0.21897686]
[1750041731581,0.42102739,106050.0,106040.0,0.22561277]
[1750041731776,0.42102739,106050.0,106040.0,0.21897686]
[1750041731988,0.42102739,106050.0,106040.0,0.22561277]
[1750041732186,0.42102739,106050.0,106040.0,0.22561278]
[1750041732382,0.42102739,106050.0,106040.0,0.22561277]
[1750041732912,0.42102739,106050.0,106040.0,0.22861271]
[1750041733051,0.42102739,106050.0,106040.0,0.25962525]
[1750041733256,0.42102739,106050.0,106040.0,0.29037684]
[1750041733459,0.42102739,106050.0,106040.0,0.29701311]
[1750041733665,0.42102739,106050.0,106040.0,0.22861359]
[1750041734144,0.42102739,106050.0,106040.0,0.22861355]
[1750041734371,0.42102739,106050.0,106040.0,0.25936421]
[1750041734578,0.42102739,106050.0,106040.0,0.26600078]
[1750041734784,0.42102739,106050.0,106040.0,0.25936421]
[1750041735199,0.42102739,106050.0,106040.0,0.26600253]
[1750041735407,0.76102739,106050.0,106040.0,0.25936421]
[1750041735618,0.76102739,106050.0,106040.0,0.2660053]
[1750041735871,0.76102739,106050.0,106040.0,0.25936421]
[1750041736084,0.76102739,106050.0,106040.0,0.26600532]
[1750041737202,0.76102739,106050.0,106040.0,0.25936421]
[1750041737431,0.76102739,106050.0,106040.0,0.26600532]
[1750041737653,0.76102739,106050.0,106040.0,0.10004421]
[1750041737871,0.76102739,106050.0,106040.0,0.26560532]
[1750041738090,0.76102739,106050.0,106040.0,0.26560531]
[1750041739025,0.76102739,106050.0,106040.0,0.10668531]
[1750041739263,0.76102739,106050.0,106040.0,0.2498655]
[1750041739493,1.17007181,106050.0,106040.0,0.03125686]
[1750041739713,1.18517181,106050.0,106040.0,0.16856184]
[1750041739953,1.18517181,106050.0,106040.0,0.00964187]
[1750041740170,1.18517181,106050.0,106040.0,0.003]
[1750041740375,1.18517181,106050.0,106040.0,0.16192]
[1750041740592,1.18517181,106050.0,106040.0,0.003]
[1750041743239,1.28141357,106050.0,106040.0,0.003]
[1750041743668,1.29084228,106050.0,106040.0,0.003]
[1750041743985,1.28141357,106050.0,106040.0,0.003]
[1750041745675,1.28141357,106050.0,106040.0,0.02071244]
[1750041745903,1.28141357,106050.0,106040.0,0.003]
[1750041746323,1.28141357,106050.0,106040.0,0.02071225]
[1750041746527,1.28141357,106050.0,106040.0,0.02071248]
[1750041746744,1.28141357,106050.0,106040.0,0.003]
[1750041748002,1.30977357,106050.0,106040.0,0.003]
[1750041750506,1.30977357,106050.0,106040.0,0.02562236]
[1750041750766,1.30977357,106050.0,106040.0,0.03226459]
[1750041751171,1.30977357,106050.0,106040.0,0.02562236]
[1750041751375,1.30977357,106050.0,106040.0,0.03226459]
[1750041751598,1.30977357,106050.0,106040.0,0.02562236]
[1750041752196,1.29467357,106050.0,106040.0,0.03226459]
[1750041752441,1.27827357,106050.0,106040.0,0.03226459]
[1750041752666,0.76102739,106050.0,106040.0,0.06306459]
[1750041752878,0.76102739,106050.0,106040.0,0.06306436]
[1750041753324,0.76102739,106050.0,106040.0,0.06306433]
[1750041753527,0.76102739,106050.0,106040.0,0.05642236]
[1750041754087,0.76102739,106050.0,106040.0,0.06306429]
[1750041754400,0.76102739,106050.0,106040.0,0.06306434]
[1750041754967,0.76102739,106050.0,106040.0,0.05642236]
[1750041756006,0.76102739,106050.0,106040.0,0.06306438]
[1750041756219,0.76102739,106050.0,106040.0,0.08740823]
[1750041756445,0.76102739,106050.0,106040.0,0.04044155]
[1750041756661,0.76102739,106050.0,106040.0,0.06869834]
[1750041756855,0.76102739,106050.0,106040.0,0.06205686]
[1750041757108,0.76102739,106050.0,106040.0,0.06869831]
[1750041757475,0.76102739,106050.0,106040.0,0.0686983]
[1750041757638,0.76102739,106050.0,106040.0,0.06205686]
[1750041758077,0.76102739,106050.0,106040.0,0.06869828]
[1750041758511,0.76102739,106050.0,106040.0,0.06871948]
[1750041758722,0.76102739,106050.0,106040.0,0.06207806]
[1750041758941,0.76102739,106050.0,106040.0,0.06871948]
[1750041759283,0.76102739,106050.0,106040.0,0.06871941]
[1750041759484,0.76102739,106050.0,106040.0,0.08642965]
[1750041759705,0.76102739,106050.0,106040.0,0.09417284]
[1750041759910,0.76102739,106050.0,106040.0,0.11852445]
[1750041760263,0.76102739,106050.0,106040.0,0.10081419]
[1750041760463,0.76102739,106050.0,106040.0,0.09134341]
[1750041761215,0.76102739,106050.0,106040.0,0.10241232]
[1750041761419,0.76102739,106050.0,106040.0,0.09134341]
[1750041761629,0.36838297,106050.0,106040.0,0.09134341]
[1750041761834,0.76102739,106050.0,106040.0,0.2593295]
[1750041762050,0.76102739,106050.0,106040.0,0.22497232]
[1750041762264,0.76102739,106050.0,106040.0,0.19669407]
[1750041762477,0.76102739,106050.0,106040.0,0.19669402]
[1750041762685,0.76102739,106050.0,106040.0,0.20459396]
[1750041762686,0.73264442,106050.0,106040.0,0.20459396]
[1750041762892,0.73264442,106050.0,106040.0,0.33249848]
[1750041763716,0.73264442,106050.0,106040.0,0.26067498]
[1750041765215,0.00014132,106070.0,106050.0,0.01454085]
[1750041765423,0.73278574,106070.0,106060.0,0.28770176]
[1750041765624,0.39278574,106070.0,106060.0,0.33859797]
[1750041765834,0.73278574,106070.0,106060.0,0.33859797]
[1750041766453,0.73478574,106070.0,106060.0,0.33859797]
[1750041766661,0.73478574,106070.0,106060.0,0.17983797]
[1750041766874,0.73278574,106070.0,106060.0,0.24235621]
[1750041767085,0.7598641,106070.0,106060.0,0.24235621]
[1750041767288,0.73678574,106070.0,106060.0,0.24235621]
[1750041767493,0.73478574,106070.0,106060.0,0.24235621]
[1750041767911,0.73678574,106070.0,106060.0,0.24235621]
[1750041768115,0.73678574,106070.0,106060.0,0.22605621]
[1750041768324,0.73678574,106070.0,106060.0,0.022624]
[1750041768534,0.75308574,106070.0,106060.0,0.181384]
[1750041769777,0.76858574,106070.0,106060.0,0.022624]
[1750041769988,0.78743987,106070.0,106040.0,0.1398085]
[1750041770201,0.38536825,106070.0,106050.0,0.15876]
[1750041770410,0.37594132,106070.0,106050.0,0.18135359]
[1750041770621,0.37594132,106070.0,106050.0,0.15876]
[1750041771034,0.37394132,106070.0,106050.0,0.15876]
[1750041771239,0.37594132,106070.0,106050.0,0.15876]
[1750041771443,0.39264442,106060.0,106050.0,0.15876]
[1750041771857,0.39264442,106060.0,106050.0,0.16540079]
[1750041772064,0.39264442,106060.0,106050.0,0.15876]
[1750041772275,0.39264442,106060.0,106050.0,0.18069993]
[1750041772477,0.39264442,106060.0,106050.0,0.18069967]
[1750041772694,0.39264442,106060.0,106050.0,0.18069953]
[1750041772895,0.39264442,106060.0,106050.0,0.17406]
[1750041773298,0.39264442,106060.0,106050.0,0.18069918]
[1750041773448,0.39264442,106060.0,106050.0,0.18069919]
[1750041773674,0.39264442,106060.0,106050.0,0.18069915]
[1750041774078,0.39264442,106060.0,106050.0,0.18069916]
[1750041774272,0.39364442,106060.0,106050.0,0.18069943]
[1750041774476,0.39364442,106060.0,106050.0,0.18069952]
[1750041774644,0.39364442,106060.0,106050.0,0.02193951]
[1750041774846,0.39364442,106060.0,106050.0,0.17406]
[1750041775205,0.39364442,106060.0,106050.0,0.19699987]
[1750041775379,0.39364442,106060.0,106050.0,0.19699961]
[1750041775588,0.39364442,106060.0,106050.0,0.19699939]
[1750041775939,0.39364442,106060.0,106050.0,0.19036]
[1750041776332,0.39364442,106060.0,106050.0,0.19699975]
[1750041776538,0.39364442,106060.0,106050.0,0.19036]
[1750041776750,0.39364442,106060.0,106050.0,0.19699973]
[1750041777176,0.39364442,106060.0,106050.0,0.19036]
[1750041777380,0.39364442,106060.0,106050.0,0.0316]
[1750041777595,0.39364442,106060.0,106050.0,0.18070008]
[1750041777798,0.39364442,106060.0,106050.0,0.1807001]
[1750041778000,0.39364442,106060.0,106050.0,0.17406]
[1750041778417,0.39364442,106060.0,106050.0,0.18069967]
[1750041778642,0.39364442,106060.0,106050.0,0.18946]
[1750041779056,0.39364442,106060.0,106050.0,0.17406]
[1750041779735,0.39364442,106060.0,106050.0,0.18069951]
[1750041779952,0.76624442,106060.0,106050.0,0.00663957]
[1750041780168,0.76624442,106060.0,106050.0,0.16540067]
[1750041780379,0.79460042,106060.0,106050.0,0.16540075]
[1750041780588,0.80402833,106060.0,106050.0,0.0066409]
[1750041780796,0.79460042,106060.0,106050.0,0.15876]
[1750041781038,0.80402833,106060.0,106030.0,0.0972685]
[1750041781260,0.80402833,106060.0,106030.0,0.05957221]
[1750041781261,1.12528884,106040.0,106030.0,0.05957221]
[1750041781472,1.12528884,106040.0,106030.0,0.06621407]
[1750041781684,1.12528884,106040.0,106030.0,0.2475865]
[1750041782096,1.12528884,106040.0,106030.0,0.24758651]
[1750041782300,1.12528884,106040.0,106030.0,0.24094456]
[1750041782530,1.12528884,106040.0,106030.0,0.2475865]
[1750041782743,0.73264442,106040.0,106030.0,0.08882651]
[1750041782951,0.73264442,106040.0,106030.0,0.24758651]
[1750041783155,0.73264442,106040.0,106030.0,0.24094456]
[1750041783370,0.73264442,106040.0,106030.0,0.2475865]
[1750041783593,0.73264442,106040.0,106030.0,0.24094456]
[1750041783807,1.12528884,106040.0,106030.0,0.2475865]
[1750041784013,0.73264442,106040.0,106030.0,0.24594456]
[1750041784220,0.73264442,106040.0,106030.0,0.2525865]
[1750041784433,0.73264442,106040.0,106030.0,0.25258653]
[1750041784644,0.73264442,106040.0,106030.0,0.25258655]
[1750041784861,1.12528884,106040.0,106030.0,0.07198456]
[1750041785072,1.12528884,106040.0,106030.0,0.21111457]
[1750041785291,1.12528884,106040.0,106030.0,0.21111465]
[1750041785498,1.12528884,106040.0,106030.0,0.20447235]
[1750041785708,1.12528884,106040.0,106030.0,0.18186]
[1750041785917,1.12528884,106040.0,106030.0,0.18850228]
[1750041786176,1.12528884,106040.0,106030.0,0.02974228]
[1750041786417,1.12528884,106040.0,106030.0,0.0231]
[1750041786644,1.12528884,106040.0,106030.0,0.19746]
[1750041786871,1.12528884,106040.0,106030.0,0.20410187]
[1750041787079,1.12528884,106040.0,106030.0,0.20410164]
[1750041787278,1.12528884,106040.0,106030.0,0.19746]
[1750041788283,1.12528884,106040.0,106030.0,0.20410123]
[1750041788708,1.12528884,106040.0,106030.0,0.19746]
[1750041788891,1.12528884,106040.0,106030.0,0.20410127]
[1750041789127,1.12528884,106040.0,106030.0,0.19746]
[1750041789535,1.12528884,106040.0,106030.0,0.22670712]
[1750041789742,1.12528884,106040.0,106030.0,0.20446476]
[1750041789946,1.12528884,106040.0,106030.0,0.05234712]
[1750041790150,1.12528884,106040.0,106030.0,0.21110711]
[1750041790372,1.12528884,106040.0,106030.0,0.20446476]
[1750041790588,1.12528884,106040.0,106030.0,0.21110711]
[1750041791004,1.12528884,106040.0,106030.0,0.05234711]
[1750041791232,1.12528884,106040.0,106030.0,0.19500713]
[1750041791446,1.12528884,106040.0,106030.0,0.19500715]
[1750041791650,1.12528884,106040.0,106030.0,0.18836476]
[1750041792061,1.12528884,106040.0,106030.0,0.21120681]
[1750041792291,1.12528884,106040.0,106030.0,0.21120665]
[1750041792534,1.12528884,106040.0,106030.0,0.05244662]
[1750041792737,1.12528884,106040.0,106030.0,0.20456476]
[1750041793153,1.12528884,106040.0,106030.0,0.21120663]
[1750041793330,1.12528884,106040.0,106030.0,0.20456476]
[1750041793766,1.12528884,106040.0,106030.0,0.21120717]
[1750041794151,1.12528884,106040.0,106030.0,0.05244717]
[1750041794395,1.12528884,106040.0,106030.0,0.20456476]
[1750041795032,1.12528884,106040.0,106030.0,0.21115796]
[1750041795855,1.12528884,106040.0,106030.0,0.21115793]
[1750041796061,1.12528884,106040.0,106030.0,0.20456476]
[1750041796507,1.12528884,106040.0,106030.0,0.21115791]
[1750041796717,1.12528884,106040.0,106030.0,0.21115792]
[1750041796932,1.12528884,106040.0,106030.0,0.21115796]
[1750041797140,1.12528884,106040.0,106030.0,0.20456476]
[1750041797351,1.12528884,106040.0,106030.0,0.21115795]
[1750041797576,1.12528884,106040.0,106030.0,0.21335569]
[1750041797992,1.12528884,106040.0,106030.0,0.21342147]
[1750041798425,1.12528884,106040.0,106030.0,0.18196]
[1750041798609,1.12528884,106040.0,106030.0,0.21342162]
[1750041798854,1.12528884,106040.0,106030.0,0.2045649]
[1750041799063,1.12528884,106040.0,106030.0,0.22006416]
[1750041799287,1.12528884,106040.0,106030.0,0.22006412]
[1750041799514,1.12528884,106040.0,106030.0,0.19745926]
[1750041799712,1.12528884,106040.0,106030.0,0.19081672]
[1750041799943,1.12528884,106040.0,106030.0,0.19745926]
[1750041800145,1.12528884,106040.0,106030.0,0.1908167]
[1750041800359,1.12528884,106040.0,106030.0,0.19081671]
[1750041800562,1.12528884,106040.0,106030.0,0.22006983]
[1750041800742,1.12528884,106040.0,106030.0,0.21342729]
[1750041800950,1.12528884,106040.0,106030.0,0.22006983]
[1750041801101,1.12528884,106040.0,106030.0,0.19081672]
[1750041801302,1.12528884,106040.0,106030.0,0.19745924]
[1750041801505,1.12528884,106040.0,106030.0,0.18860254]
[1750041801726,1.12528884,106040.0,106030.0,0.22007012]
[1750041801928,1.12528884,106040.0,106030.0,0.21121345]
[1750041802283,1.12528884,106040.0,106030.0,0.20457095]
[1750041802455,1.12528884,106040.0,106030.0,0.21315905]
[1750041802819,1.12528884,106040.0,106030.0,0.19766]
[1750041803276,1.12528884,106040.0,106030.0,0.2065166]
[1750041803467,1.12528884,106040.0,106030.0,0.21315905]
[1750041803669,1.12528884,106040.0,106030.0,0.19766]
[1750041803968,1.12528884,106040.0,106030.0,0.22027239]
[1750041804565,1.12528884,106040.0,106030.0,0.22691491]
[1750041805001,0.34,106040.0,106030.0,0.22027239]
[1750041805214,0.34,106040.0,106030.0,0.22691488]
[1750041805397,1.12528884,106040.0,106030.0,0.22691488]
[1750041805559,1.12528884,106040.0,106030.0,0.22691487]
[1750041806383,0.73264442,106040.0,106030.0,0.25620158]
[1750041806610,0.73264442,106040.0,106030.0,0.24955916]
[1750041806805,0.34,106040.0,106030.0,0.25620155]
[1750041807012,0.73264442,106040.0,106030.0,0.24955916]
[1750041807210,0.73264442,106040.0,106030.0,0.25518027]
[1750041807439,0.73264442,106040.0,106030.0,0.24853788]
[1750041807672,1.12528884,106040.0,106030.0,0.25518026]
[1750041807917,1.12528884,106040.0,106030.0,0.24853788]
[1750041808121,1.12528884,106040.0,106030.0,0.08977788]
[1750041808329,0.73264442,106040.0,106030.0,0.24853788]
[1750041808576,0.73264442,106040.0,106030.0,0.25518027]
[1750041808879,0.73264442,106040.0,106030.0,0.26182258]
[1750041809088,0.73264442,106040.0,106030.0,0.24853788]
[1750041809296,0.73264442,106040.0,106030.0,0.25518018]
[1750041809702,0.73264442,106040.0,106030.0,0.26182248]
[1750041809906,0.73264442,106040.0,106030.0,0.29286751]
[1750041810330,0.73264442,106040.0,106030.0,0.29950981]
[1750041810533,0.73264442,106040.0,106030.0,0.29286751]
[1750041810735,0.73264442,106040.0,106030.0,0.29950982]
[1750041810937,0.73264442,106040.0,106030.0,0.29286751]
[1750041811337,0.73264442,106040.0,106030.0,0.29950982]
[1750041811576,0.73264442,106040.0,106030.0,0.29286751]
[1750041812219,0.73264442,106040.0,106030.0,0.29950973]
[1750041812419,0.73264442,106040.0,106030.0,0.29286751]
[1750041812833,1.12528884,106040.0,106030.0,0.29286751]
[1750041814714,1.12528884,106040.0,106030.0,0.26096751]
[1750041815821,1.12528884,106040.0,106030.0,0.10220751]
[1750041816059,1.14128884,106040.0,106030.0,0.22328018]
[1750041816492,1.12528884,106040.0,106030.0,0.22328018]
[1750041816923,1.12528884,106040.0,106030.0,0.21628018]
[1750041817221,1.12628884,106040.0,106030.0,0.21628018]
[1750041817664,1.12628884,106040.0,106030.0,0.24818018]
[1750041819801,1.12628884,106040.0,106030.0,0.23168018]
[1750041820424,1.12628884,106040.0,106030.0,0.24818018]
[1750041823287,1.12628884,106040.0,106030.0,0.2548228]
[1750041823700,1.12628884,106040.0,106030.0,0.2383228]
[1750041823910,1.12628884,106040.0,106030.0,0.23168018]
[1750041824112,1.12628884,106040.0,106030.0,0.2383228]
[1750041824585,1.12628884,106040.0,106030.0,0.0795628]
[1750041825434,1.12628884,106040.0,106030.0,0.04465469]
[1750041825663,1.12628884,106040.0,106030.0,0.05129743]
[1750041825874,1.12628884,106040.0,106030.0,0.02925469]
[1750041826086,1.27259025,106040.0,106020.0,0.15872]
[1750041826292,0.39264442,106030.0,106020.0,0.15872]
[1750041826497,0.34,106020.0,106010.0,0.17492]
[1750041826706,0.73264442,106020.0,106010.0,0.17492]
[1750041827354,0.73264442,106020.0,106000.0,0.12877669]
[1750041827473,0.399392,106030.0,106010.0,0.15919099]
[1750041827670,0.39264442,106020.0,106010.0,0.16419099]
[1750041828160,0.39264442,106020.0,106010.0,0.15919099]
[1750041829322,0.39264442,106020.0,106010.0,0.16019099]
[1750041829523,0.40225997,106020.0,106010.0,0.17869099]
[1750041830726,0.40225997,106020.0,106010.0,0.19369099]
[1750041831385,0.40225997,106020.0,106010.0,0.21682882]
[1750041831596,0.40225997,106020.0,106010.0,0.3044736]
[1750041831841,0.00961555,106020.0,106010.0,0.34216093]
[1750041832284,0.39264442,106030.0,106020.0,0.04494085]
[1750041832491,0.40224492,106030.0,106020.0,0.17889059]
[1750041833533,0.40324492,106030.0,106020.0,0.17889059]